bitfinex/quotes_ETHUSD_20260126
["timestamp","ask_amount","ask_price","bid_price","bid_amount"]
[1769388242106,0.04416805,2830.1,2829.0,9.35170924]
[1769388242972,10.50113859,2830.1,2829.0,9.35170924]
[1769388243158,10.45697054,2830.1,2828.8,0.002]
[1769388243675,0.001,2830.0,2828.9,8.75788856]
[1769388243989,0.001,2830.0,2829.0,10.51757322]
[1769388244193,0.001,2830.0,2829.2,8.75788856]
[1769388244383,0.001,2830.0,2829.4,8.75788856]
[1769388246212,9.5589827,2830.9,2829.3,0.88361078]
[1769388246213,8.8189827,2831.3,2829.5,8.99145886]
[1769388246388,0.92604916,2831.2,2829.9,8.75788856]
[1769388246763,0.04415089,2831.2,2829.9,8.75788856]
[1769388246963,0.04414777,2831.4,2829.9,8.75788856]
[1769388248362,0.04414777,2831.4,2829.8,0.88345466]
[1769388248363,0.04414777,2831.4,2830.1,8.75788856]
[1769388248563,0.04414933,2831.3,2830.1,8.75788856]
[1769388248796,0.04414465,2831.6,2830.3,8.75788856]
[1769388249295,0.92704159,2831.6,2830.3,8.75788856]
[1769388249493,9.5589827,2831.8,2830.3,8.75788856]
[1769388249695,0.74,2831.8,2830.3,8.75788856]
[1769388249894,0.74,2831.8,2830.5,8.75788856]
[1769388250302,0.04414309,2831.7,2830.5,8.75788856]
[1769388250508,0.001,2831.9,2830.7,8.75788856]
[1769388250509,0.04513997,2831.9,2830.7,8.75788856]
[1769388250913,0.001,2831.9,2830.7,8.75788856]
[1769388251202,0.001,2831.9,2830.9,8.75788856]
[1769388251820,0.741,2832.6,2830.9,8.75788856]
[1769388251821,0.78512906,2832.6,2830.9,8.75788856]
[1769388252006,0.78512906,2832.6,2830.9,8.99145886]
[1769388252208,0.741,2832.6,2830.9,8.99145886]
[1769388252412,0.001,2832.6,2831.3,0.2335703]
[1769388252586,0.001,2832.6,2831.4,9.65703445]
[1769388252791,0.001,2832.6,2831.6,8.75788856]
[1769388255788,0.001,2832.6,2831.8,8.75788856]
[1769388257391,0.001,2832.6,2831.6,3.53144754]
[1769388257392,0.001,2832.6,2831.6,0.88288643]
[1769388257629,0.001,2832.6,2831.6,10.39503643]
[1769388258324,0.001,2832.6,2831.6,11.35916788]
[1769388258629,0.04512906,2832.6,2831.7,10.39501188]
[1769388258805,0.001,2832.6,2831.7,10.39501188]
[1769388259354,0.001,2832.6,2831.7,9.51215]
[1769388260446,0.001,2832.6,2831.4,10.3950877]
[1769388260750,8.8454567,2832.6,2831.4,9.51215]
[1769388261054,1.02134409,2832.5,2831.4,9.51215]
[1769388261267,9.86580079,2832.5,2831.4,9.51215]
[1769388261548,9.82167017,2832.5,2831.1,10.39519676]
[1769388261754,9.82167017,2832.5,2831.1,13.04427782]
[1769388261916,0.98226702,2832.4,2831.3,10.39513113]
[1769388262120,0.04413374,2832.3,2831.3,10.39512196]
[1769388262435,0.04413374,2832.3,2831.3,9.51215]
[1769388263215,0.92682244,2832.3,2831.3,9.51215]
[1769388263418,1.0263992,2832.4,2831.3,10.39513259]
[1769388263628,0.92771116,2832.6,2831.3,11.78785221]
[1769388263830,0.92771116,2832.6,2830.8,11.27125327]
[1769388263831,8.8444567,2832.5,2830.8,11.27125327]
[1769388264142,8.8444567,2832.1,2830.8,11.27125327]
[1769388264936,8.8444567,2832.1,2830.8,10.38813886]
[1769388265137,0.97271627,2832.0,2830.8,11.27128097]
[1769388265728,0.97271627,2832.0,2830.8,10.38813886]
[1769388265941,9.81717297,2832.0,2830.8,9.51215]
[1769388266149,8.8444567,2832.0,2830.8,9.51215]
[1769388266349,9.72714555,2832.3,2830.8,10.39528546]
[1769388266551,8.8444567,2832.1,2830.8,9.51215]
[1769388267337,8.8444567,2832.1,2830.8,10.39528354]
[1769388267732,0.88444567,2832.0,2830.8,10.39528354]
[1769388267938,0.0441353,2832.2,2830.8,10.39528354]
[1769388268437,8.888592,2832.2,2830.8,10.39528354]
[1769388268634,8.8444567,2832.2,2830.8,10.39528354]
[1769388268837,0.04413685,2832.1,2831.0,0.002]
[1769388269164,0.04513685,2832.1,2831.0,0.002]
[1769388270052,0.88895936,2832.0,2831.0,9.51415]
[1769388270248,0.93309777,2832.0,2831.0,9.51415]
[1769388271075,0.001,2832.1,2831.0,10.39721397]
[1769388271365,0.001,2832.1,2831.0,0.002]
[1769388271581,9.77234931,2832.1,2831.0,0.002]
[1769388271735,9.72821246,2832.1,2831.0,0.002]
[1769388272371,0.001,2832.1,2831.1,9.51215]
[1769388272667,0.001,2832.1,2831.1,11.78815057]
[1769388276576,0.04413218,2832.4,2831.2,9.03416377]
[1769388276788,0.001,2832.6,2831.2,9.03416377]
[1769388276789,0.04512906,2832.6,2831.2,8.80059347]
[1769388276975,0.04512906,2832.6,2831.4,8.80059347]
[1769388277163,9.46035352,2832.5,2831.2,0.88299633]
[1769388277376,8.64035092,2832.4,2831.1,8.80059347]
[1769388277557,8.59621874,2832.4,2831.2,0.88301591]
[1769388277758,8.59621874,2832.4,2831.1,9.68362068]
[1769388277970,8.59621874,2832.4,2831.0,0.002]
[1769388278195,8.59621874,2832.2,2831.0,0.002]
[1769388278388,8.64035559,2832.1,2831.0,0.002]
[1769388278692,8.59621874,2832.1,2831.0,0.002]
[1769388278989,0.04413841,2832.0,2831.0,0.002]
[1769388279703,0.94603535,2832.3,2831.1,8.80059347]
[1769388280002,0.94603535,2832.3,2831.2,9.68085282]
[1769388280496,0.04413062,2832.5,2831.2,9.68085282]
[1769388280670,0.04413218,2832.4,2831.2,9.68085282]
[1769388281196,0.04413374,2832.3,2831.2,9.68285282]
[1769388281400,0.001,2832.2,2831.2,9.68285282]
[1769388281603,0.001,2832.2,2831.4,8.80059347]
[1769388281909,0.001,2832.2,2831.5,0.96835801]
[1769388282108,0.001,2832.2,2831.5,9.76895148]
[1769388283677,0.001,2832.2,2831.6,9.68348653]
[1769388283882,0.001,2832.2,2831.6,8.80059347]
[1769388284713,0.001,2832.2,2831.5,0.96835801]
[1769388284891,0.001,2832.2,2831.2,0.88225935]
[1769388285503,0.001,2832.2,2831.2,0.002]
[1769388285685,0.0451353,2832.2,2831.2,0.002]
[1769388286405,0.92784618,2832.2,2831.2,0.002]
[1769388286595,0.0451353,2832.2,2831.2,0.002]
[1769388287006,0.0451353,2832.2,2831.3,8.80059347]
[1769388287314,0.001,2832.2,2831.4,0.88025935]
[1769388287884,0.001,2832.2,2831.4,10.56377882]
[1769388290234,0.001,2832.2,2831.4,10.56379071]
[1769388290537,0.001,2832.2,2831.4,9.68085282]
[1769388290716,0.001,2832.2,2831.2,0.88498911]
[1769388291114,0.0451353,2832.2,2831.2,0.88498911]
[1769388291313,0.001,2832.2,2831.3,0.88298419]
[1769388291514,0.0451353,2832.2,2831.3,0.88298419]
[1769388291822,0.001,2832.2,2831.3,0.88298419]
[1769388292022,0.001,2832.2,2831.2,9.68559669]
[1769388292342,0.001,2832.2,2831.5,8.80059347]
[1769388294114,0.001,2832.2,2831.7,8.80059347]
[1769388295309,0.001,2832.2,2831.5,0.88292227]
[1769388295642,0.001,2832.2,2831.4,9.6835481]
[1769388295850,0.001,2832.2,2831.5,0.88292357]
[1769388296036,0.001,2832.2,2831.6,0.9683517]
[1769388297022,0.001,2832.2,2831.6,1.85123805]
[1769388297316,0.001,2832.2,2831.6,9.68347982]
[1769388297719,0.001,2832.6,2831.6,9.68347982]
[1769388297720,0.001,2832.6,2831.7,9.03416377]
[1769388298318,0.001,2832.6,2831.8,9.68342417]
[1769388300838,0.001,2832.6,2831.8,9.6834104]
[1769388301146,0.001,2832.6,2831.5,9.68350182]
[1769388301349,0.04512906,2832.6,2831.6,0.96835018]
[1769388301549,0.04512906,2832.6,2831.6,1.8512423]
[1769388301750,0.001,2832.6,2831.6,10.65181371]
[1769388301945,0.04512906,2832.6,2831.6,10.65181371]
[1769388302321,0.04512906,2832.6,2831.6,9.76894365]
[1769388302540,0.99751929,2832.6,2831.6,9.76894365]
[1769388303050,10.1438493,2832.6,2831.3,9.01164014]
[1769388303255,10.98230206,2832.6,2831.3,9.89460511]
[1769388303434,10.98230206,2832.6,2831.3,9.89460583]
[1769388304256,10.09972024,2832.6,2831.5,0.882922]
[1769388304465,10.09972024,2832.6,2831.4,9.89459556]
[1769388304466,0.04413062,2832.5,2831.4,9.89459556]
[1769388304624,0.04413062,2832.5,2831.5,1.34265322]
[1769388304825,0.04413062,2832.5,2831.7,0.002]
[1769388305028,0.001,2832.4,2831.7,0.002]
[1769388307860,9.14733001,2832.4,2831.7,0.002]
[1769388309168,9.14633001,2832.2,2831.2,0.002]
[1769388309371,0.91904638,2832.1,2831.2,0.002]
[1769388309527,10.06537639,2832.1,2831.2,0.002]
[1769388314055,0.04413841,2832.0,2831.2,0.002]
[1769388314276,9.14633001,2831.9,2831.2,0.002]
[1769388314578,0.88364401,2832.4,2831.2,9.01364014]
[1769388314881,0.04413374,2832.3,2831.3,9.91300415]
[1769388315040,9.19146219,2832.4,2831.3,9.91300415]
[1769388315243,10.02997542,2832.4,2831.3,9.91300415]
[1769388316752,8.84261915,2832.3,2831.3,9.01164014]
[1769388316952,8.79848541,2832.3,2831.3,9.01164014]
[1769388317148,0.0441353,2832.2,2831.3,9.01164014]
[1769388317369,0.001,2832.4,2831.3,9.89461576]
[1769388318039,0.001,2832.4,2831.5,0.002]
[1769388318242,0.001,2832.4,2831.6,9.39502519]
[1769388318442,0.001,2832.4,2831.8,9.39502519]
[1769388319565,0.001,2832.4,2831.8,10.27785481]
[1769388320873,0.001,2832.4,2831.7,0.93970252]
[1769388321075,0.001,2832.4,2831.5,0.002]
[1769388322249,0.04513218,2832.4,2831.5,0.002]
[1769388323379,0.001,2832.4,2831.6,9.39502519]
[1769388324179,0.001,2832.4,2831.5,0.002]
[1769388324483,0.001,2832.4,2831.5,10.4252243]
[1769388326360,0.001,2832.4,2831.5,11.30814592]
[1769388327006,0.001,2832.4,2831.5,10.4252243]
[1769388327862,0.001,2832.4,2831.7,9.39502519]
[1769388329016,0.001,2832.4,2831.5,0.002]
[1769388329181,9.72366613,2832.4,2831.5,0.002]
[1769388329506,9.67953395,2832.4,2831.5,0.002]
[1769388329862,9.67953395,2832.4,2831.3,0.002]
[1769388329863,8.79848541,2832.2,2831.3,0.002]
[1769388330066,8.79848541,2832.0,2831.3,0.002]
[1769388330600,8.79848541,2832.0,2831.7,0.002]
[1769388330777,0.87984854,2831.9,2831.7,0.002]
[1769388331898,0.87984854,2831.9,2831.5,0.002]
[1769388332661,0.0451353,2832.2,2831.5,0.002]
[1769388333002,0.001,2832.2,2831.5,0.002]
[1769388334489,0.001,2832.2,2831.6,9.36453012]
[1769388336372,0.001,2832.4,2831.8,9.36453012]
[1769388337520,0.001,2832.4,2831.5,0.88490449]
[1769388337738,0.001,2832.4,2831.5,1.91004795]
[1769388337891,0.001,2832.4,2831.6,0.88288677]
[1769388338312,0.001,2832.4,2831.6,10.24741689]
[1769388339359,0.04412595,2832.8,2831.7,9.36453012]
[1769388339654,0.04412128,2833.1,2831.7,9.36453012]
[1769388339853,0.04412128,2833.1,2831.6,0.88288677]
[1769388339854,1.07074318,2833.1,2831.9,9.36453012]
[1769388340043,0.04412283,2833.0,2831.9,9.36453012]
[1769388340551,9.38384761,2833.0,2831.9,9.36453012]
[1769388340755,10.22218503,2833.0,2831.8,1.02474169]
[1769388341061,9.33972478,2833.0,2831.8,1.02474169]
[1769388341211,1.03663467,2832.9,2831.9,10.70293593]
[1769388341414,1.0266219,2833.1,2831.9,10.70293593]
[1769388342053,0.04412283,2833.0,2831.9,10.70293593]
[1769388343581,0.001,2832.9,2831.9,10.70293593]
[1769388344363,0.001,2832.9,2831.9,9.82014544]
[1769388345761,0.001,2832.9,2831.9,10.70292629]
[1769388345960,0.001,2832.9,2832.1,9.36453012]
[1769388346261,0.04512439,2832.9,2832.1,9.36453012]
[1769388346459,0.001,2832.9,2832.1,9.36453012]
[1769388348247,0.001,2832.9,2832.1,10.24723695]
[1769388349666,0.001,2832.9,2832.1,9.36453012]
[1769388349835,0.04512439,2832.9,2832.2,1.14200436]
[1769388350277,9.38484917,2832.9,2831.8,10.24735173]
[1769388350466,0.04412595,2832.8,2831.8,10.24735173]
[1769388351755,0.001,2832.9,2831.8,10.24735173]
[1769388354490,0.001,2832.9,2831.8,10.24735693]
[1769388354697,9.34072478,2832.9,2831.8,9.36453012]
[1769388354881,9.33972478,2832.7,2831.7,0.002]
[1769388355077,9.38385384,2832.6,2831.7,0.002]
[1769388355284,9.33972478,2832.6,2832.0,0.002]
[1769388356799,9.3838554,2832.5,2832.0,0.002]
[1769388356957,9.33972478,2832.5,2832.0,0.002]
[1769388357261,0.93397248,2832.4,2832.0,0.002]
[1769388359604,0.97810466,2832.4,2832.0,0.002]
[1769388360362,11.20049284,2832.4,2831.8,0.002]
[1769388360673,11.15636066,2832.4,2831.3,0.002]
[1769388360988,1.46869354,2832.3,2831.3,9.36653012]
[1769388361598,2.35137138,2832.3,2831.3,9.36653012]
[1769388362011,11.69109616,2832.3,2831.3,9.36653012]
[1769388362708,9.38386008,2832.2,2831.3,0.002]
[1769388362866,9.33972478,2832.2,2831.3,0.002]
[1769388363067,9.33972478,2832.0,2831.3,0.002]
[1769388363402,10.22251664,2832.0,2831.3,0.002]
[1769388363888,10.96151664,2832.0,2831.3,0.002]
[1769388364798,1.16910962,2832.1,2831.3,9.06993872]
[1769388365123,0.78313374,2832.3,2831.3,9.97713259]
[1769388365332,1.66583078,2832.3,2831.3,9.06993872]
[1769388365631,0.78313374,2832.3,2831.3,9.06993872]
[1769388366501,1.6658139,2832.3,2831.3,9.06993872]
[1769388368297,10.57609987,2832.3,2831.3,0.002]
[1769388368495,0.001,2832.7,2831.4,9.06793872]
[1769388368729,0.001,2832.7,2831.6,9.06793872]
[1769388369412,0.001,2832.7,2831.8,9.06793872]
[1769388369831,0.92646899,2833.4,2831.8,9.06793872]
[1769388370024,2.26305477,2833.4,2832.0,9.06793872]
[1769388371561,2.26305477,2833.4,2832.0,9.95068253]
[1769388371858,8.91028597,2833.3,2832.0,9.06793872]
[1769388372066,8.95440569,2833.2,2832.0,9.06793872]
[1769388372228,0.04412128,2833.1,2832.0,9.06793872]
[1769388372431,0.04412128,2833.1,2832.1,1.00630188]
[1769388372756,8.95440725,2833.1,2832.1,1.00630188]
[1769388372918,8.91028597,2833.1,2832.1,1.00630188]
[1769388373819,0.88238147,2833.3,2832.1,1.00630188]
[1769388374019,0.88238147,2833.3,2832.1,9.95066895]
[1769388374020,0.04411816,2833.3,2832.1,9.95066895]
[1769388374251,0.04411816,2833.3,2832.1,9.95065827]
[1769388374417,0.92648242,2833.3,2832.1,9.06793872]
[1769388374623,9.83676839,2833.3,2832.1,9.06793872]
[1769388374819,1.3366208,2833.2,2832.1,9.97473259]
[1769388376528,2.26313527,2833.2,2832.1,9.97473259]
[1769388376949,11.29376883,2833.2,2832.1,9.97473259]
[1769388377154,9.03063356,2833.1,2831.8,8.83962874]
[1769388377357,9.03063356,2833.1,2831.9,0.88279595]
[1769388377669,9.03063356,2833.1,2831.8,9.72244179]
[1769388377966,9.91306049,2833.1,2831.8,9.72244179]
[1769388378257,1.12496813,2833.0,2831.9,9.81187292]
[1769388379038,0.04412439,2832.9,2831.9,8.83962874]
[1769388379229,9.03063356,2832.7,2831.5,0.002]
[1769388379437,9.03063356,2832.5,2831.5,0.002]
[1769388379637,0.88267485,2832.3,2831.5,0.002]
[1769388380374,9.91330841,2832.3,2831.5,0.002]
[1769388380580,10.37944608,2832.2,2831.5,0.002]
[1769388381738,9.91337075,2832.1,2831.5,0.002]
[1769388382337,0.739,2832.0,2831.5,0.002]
[1769388382738,3.53173049,2832.3,2831.5,0.002]
[1769388382739,0.74,2832.3,2831.5,0.002]
[1769388383534,0.78413374,2832.3,2831.5,0.88636287]
[1769388384455,0.78413374,2832.3,2831.5,8.84162874]
[1769388384959,9.91333958,2832.2,2831.3,0.002]
[1769388385573,9.03063356,2832.2,2831.3,0.002]
[1769388386086,0.001,2832.3,2831.3,8.84162874]
[1769388386293,0.739,2832.1,2831.4,0.88436287]
[1769388388872,0.04413841,2832.0,2831.4,0.88436287]
[1769388389378,0.739,2832.1,2831.4,9.72399161]
[1769388389580,0.78313685,2832.1,2831.4,9.72399161]
[1769388390080,0.78313685,2832.1,2831.4,0.88436287]
[1769388390385,0.78313685,2832.1,2831.3,0.002]
[1769388390692,0.04413841,2832.0,2831.3,0.002]
[1769388391201,9.07477197,2832.0,2831.3,0.002]
[1769388391347,9.03063356,2832.0,2831.0,0.002]
[1769388391547,9.03063356,2831.8,2831.0,0.002]
[1769388392072,8.65284032,2831.6,2831.0,0.002]
[1769388392282,9.53576456,2831.5,2831.0,0.002]
[1769388392796,9.53576456,2831.5,2831.3,0.001]
[1769388392951,9.53576456,2831.5,2831.0,0.00100395]
[1769388393149,1.06523727,2831.9,2831.0,8.49000462]
[1769388393366,0.88369601,2832.3,2831.0,8.49000462]
[1769388393566,0.0441353,2832.2,2831.0,8.49000462]
[1769388394279,0.92686481,2832.2,2831.0,8.49000462]
[1769388395500,0.92686481,2832.2,2831.0,9.373084]
[1769388395501,0.0441353,2832.2,2831.0,9.373084]
[1769388395694,0.74,2832.3,2831.2,8.48900067]
[1769388396162,0.0441353,2832.2,2831.2,8.48900067]
[1769388396362,0.78413374,2832.3,2831.2,9.37201646]
[1769388396664,0.78413374,2832.3,2831.2,8.48900067]
[1769388396872,0.78413374,2832.3,2831.3,9.5199348]
[1769388397079,0.74,2832.3,2831.3,9.5199348]
[1769388397259,0.78413374,2832.3,2831.3,9.5199348]
[1769388397606,0.001,2832.3,2831.3,9.5199348]
[1769388398486,0.001,2832.3,2831.3,8.48900067]
[1769388398683,0.04513374,2832.3,2831.3,8.48900067]
[1769388398860,8.84118997,2832.3,2831.0,8.49000462]
[1769388399059,8.79705623,2832.3,2831.0,8.49000462]
[1769388400406,0.88273719,2832.1,2831.0,8.49000462]
[1769388400579,0.04413841,2832.0,2831.1,9.33800113]
[1769388402310,0.92692029,2832.0,2831.1,9.33800113]
[1769388402510,0.92692029,2832.0,2831.1,8.48900067]
[1769388402907,9.72297652,2832.0,2831.0,0.00100395]
[1769388403106,9.67883811,2832.0,2831.0,0.00100395]
[1769388404310,0.8828307,2831.8,2831.0,0.00100395]
[1769388404522,1.01644578,2831.7,2831.0,0.00100395]
[1769388406612,1.89931611,2831.7,2831.0,0.00100395]
[1769388406813,10.69537234,2831.7,2831.0,0.00100395]
[1769388407013,10.65122925,2831.7,2831.0,0.00100395]
[1769388407695,9.76835892,2831.7,2831.0,0.00100395]
[1769388408030,1.06512112,2831.6,2831.0,0.00100395]
[1769388408201,1.10926577,2831.6,2831.0,0.00100395]
[1769388408401,0.04414465,2831.6,2831.0,0.00100395]
[1769388408601,0.04414309,2831.7,2831.0,8.49000462]
[1769388409827,0.88378525,2832.0,2831.0,8.49000462]
[1769388409828,0.78313997,2831.9,2831.0,8.49000462]
[1769388411032,1.66594463,2831.9,2831.0,8.49000462]
[1769388411733,10.46200086,2831.9,2831.0,0.00100395]
[1769388411901,10.19546374,2831.8,2831.0,0.00100395]
[1769388412103,0.04414309,2831.7,2831.0,0.00100395]
[1769388413640,0.92700848,2831.7,2831.0,0.00100395]
[1769388413808,0.04414309,2831.7,2831.0,0.00100395]
[1769388414121,0.04414309,2831.7,2831.0,8.49000462]
[1769388414513,0.04414153,2831.8,2831.0,8.49000462]
[1769388414703,0.739,2831.9,2831.0,8.49000462]
[1769388414913,1.7852983,2831.9,2831.0,8.49000462]
[1769388416036,0.001,2831.5,2831.0,8.49000462]
[1769388417137,0.001,2831.5,2831.0,0.00100395]
[1769388417635,0.04514621,2831.5,2831.0,0.00100395]
[1769388418746,0.001,2831.5,2831.0,0.00100395]
[1769388418947,0.001,2831.5,2831.0,9.33920508]
[1769388419431,0.001,2831.5,2831.0,0.00100395]
[1769388420326,0.04514621,2831.5,2831.0,0.00100395]
[1769388421417,8.79605623,2831.3,2830.3,0.002]
[1769388422349,8.79605623,2831.3,2830.3,8.49100067]
[1769388422549,0.96790117,2831.2,2830.3,8.49100067]
[1769388422751,0.74,2831.1,2830.3,8.49100067]
[1769388425063,0.88296083,2831.4,2830.3,8.49100067]
[1769388425064,0.04414777,2831.4,2830.3,9.37429726]
[1769388425261,0.001,2831.5,2830.3,9.37429726]
[1769388427633,0.001,2831.5,2830.5,0.002]
[1769388427834,8.78468667,2831.5,2830.5,8.3498437]
[1769388428039,0.92261644,2831.4,2830.5,8.3498437]
[1769388428289,9.70630311,2831.4,2830.5,0.002]
[1769388428579,0.04414933,2831.3,2830.5,0.002]
[1769388430078,0.92714563,2831.3,2830.5,0.002]
[1769388430278,0.92714465,2831.3,2830.5,0.002]
[1769388430540,1.05893,2831.2,2830.5,0.002]
[1769388430744,0.04415244,2831.1,2830.5,0.002]
[1769388433671,9.71089895,2831.1,2830.5,0.002]
[1769388433867,9.66674651,2831.1,2830.5,0.002]
[1769388434384,0.001,2831.5,2830.7,8.3478437]
[1769388434679,0.001,2831.5,2830.9,8.3478437]
[1769388435947,0.001,2832.0,2830.9,8.5177842]
[1769388436477,0.001,2832.0,2831.1,8.5177842]
[1769388437877,0.04513841,2832.0,2831.1,8.5177842]
[1769388439482,0.001,2832.0,2831.1,8.5177842]
[1769388439701,0.001,2831.3,2831.2,9.45786866]
[1769388439914,0.001,2831.3,2687.9,0.00211993]
[1769388439915,8.40365686,2831.3,2830.1,0.002]
[1769388440121,0.74,2831.4,2830.1,0.002]
[1769388440122,8.40365686,2831.1,2830.1,0.002]
[1769388440276,8.40365686,2830.9,2829.8,0.002]
[1769388440475,9.28679943,2830.8,2829.8,0.002]
[1769388441570,0.88311966,2830.9,2829.8,8.5197842]
[1769388441770,1.77203619,2831.0,2829.8,8.5197842]
[1769388442285,0.88893477,2831.0,2829.8,8.5197842]
[1769388442602,1.66715528,2831.3,2830.0,8.5177842]
[1769388442798,0.74,2831.3,2830.0,8.5177842]
[1769388443006,0.04415089,2831.2,2830.0,8.5177842]
[1769388443912,8.44780775,2831.2,2829.8,0.002]
[1769388444112,8.40365686,2831.0,2829.8,0.002]
[1769388444271,0.04415556,2830.9,2829.8,0.002]
[1769388444605,0.88314257,2830.8,2829.8,0.002]
[1769388447783,9.28679943,2830.8,2829.8,0.002]
[1769388448689,0.04415868,2830.7,2829.8,0.002]
[1769388448893,0.93309581,2830.6,2829.8,0.002]
[1769388449279,0.88323617,2830.5,2829.8,0.002]
[1769388449681,8.40365686,2831.7,2829.9,8.5177842]
[1769388449975,3.5310353,2832.1,2830.1,8.5177842]
[1769388449976,0.88276564,2832.1,2830.1,8.5177842]
[1769388450179,0.88271133,2832.2,2830.3,8.5177842]
[1769388450381,0.0441353,2832.2,2830.5,8.5177842]
[1769388450593,0.04513841,2832.0,2830.5,8.5177842]
[1769388450779,0.001,2832.0,2830.5,8.5177842]
[1769388450983,0.001,2832.0,2830.7,8.5177842]
[1769388451181,0.001,2832.0,2830.9,8.5177842]
[1769388451481,3.52962738,2833.2,2830.8,0.88314257]
[1769388451482,9.28583336,2833.9,2831.6,8.5177842]
[1769388451682,0.001,2831.8,2831.6,8.5177842]
[1769388451978,0.001,2831.8,2831.5,0.2335703]
[1769388451979,8.2280059,2833.8,2831.8,8.5177842]
[1769388452178,0.74,2833.9,2831.8,8.5177842]
[1769388452518,0.04410571,2834.1,2832.4,8.5177842]
[1769388452902,0.04410571,2834.1,2832.6,8.5177842]
[1769388453110,0.04410415,2834.2,2832.6,8.5177842]
[1769388453418,0.04410415,2834.2,2832.3,0.2335703]
[1769388453419,0.04410415,2834.2,2833.0,8.1439967]
[1769388453619,1.35258296,2834.3,2833.0,8.1439967]
[1769388453780,1.35258296,2834.3,2833.0,8.8839967]
[1769388453982,1.35258296,2834.3,2833.2,8.1439967]
[1769388455516,1.35258296,2834.3,2833.3,0.88236332]
[1769388455720,1.35258296,2834.3,2833.4,9.39957828]
[1769388457627,1.35258296,2834.3,2833.6,8.1439967]
[1769388458021,0.04409015,2835.1,2833.6,8.1439967]
[1769388458726,0.92589642,2835.1,2833.6,8.1439967]
[1769388459190,0.04409015,2835.1,2833.6,8.1439967]
[1769388459391,12.2437293,2835.5,2833.8,8.1439967]
[1769388459392,0.04409171,2835.0,2833.8,8.1439967]
[1769388459598,8.71700028,2835.5,2833.9,9.0261732]
[1769388459599,0.9258356,2835.3,2833.9,9.0261732]
[1769388460099,8.80521171,2835.2,2833.4,1.25558158]
[1769388460299,8.71700028,2834.4,2831.1,5.4343724]
[1769388460525,8.71700028,2834.2,2832.6,0.88255929]
[1769388460698,0.04410571,2834.1,2832.7,0.88254632]
[1769388461094,0.04410571,2834.1,2832.9,0.88248315]
[1769388461424,8.71700028,2835.0,2833.2,0.88238669]
[1769388461625,0.88189643,2834.8,2833.2,1.32360719]
[1769388461920,0.04409637,2834.7,2833.2,1.32360719]
[1769388462696,0.04409637,2834.7,2833.2,1.32361356]
[1769388463130,0.04409637,2834.7,2833.4,0.002]
[1769388463429,0.001,2834.5,2833.4,0.002]
[1769388464103,0.04509948,2834.5,2833.4,0.002]
[1769388465743,0.001,2834.5,2833.4,9.09295777]
[1769388465903,0.001,2834.5,2833.5,9.02629774]
[1769388469539,0.001,2834.5,2833.4,0.94896107]
[1769388469750,8.71800028,2834.5,2833.4,0.002]
[1769388469922,0.04410104,2834.4,2833.4,0.002]
[1769388470253,0.87621013,2834.3,2833.4,0.002]
[1769388470626,0.92612506,2834.4,2833.4,0.002]
[1769388470841,0.04410104,2834.4,2833.4,0.002]
[1769388471313,0.04509948,2834.5,2833.4,0.002]
[1769388471519,0.001,2834.5,2833.5,8.1439967]
[1769388471757,0.001,2834.5,2833.6,8.95859637]
[1769388472257,0.001,2834.5,2833.6,9.8408573]
[1769388472852,0.78309015,2835.1,2833.7,8.1439967]
[1769388473158,0.04409015,2835.1,2833.7,8.1439967]
[1769388473382,0.92583186,2835.3,2833.7,8.1439967]
[1769388473559,0.92583186,2835.3,2833.8,9.12808243]
[1769388474316,9.64283214,2835.3,2833.8,10.01027502]
[1769388474547,9.5987451,2835.3,2833.8,10.01027502]
[1769388475558,0.0440886,2835.2,2833.8,10.01027502]
[1769388475748,0.001,2835.1,2833.8,10.01027502]
[1769388475952,0.001,2835.1,2833.9,1.35391809]
[1769388476156,0.04509015,2835.1,2833.9,9.49791479]
[1769388476360,0.04509015,2835.1,2834.0,0.88214537]
[1769388476536,0.001,2835.1,2834.0,9.02614207]
[1769388476938,0.04509015,2835.1,2834.0,9.02614207]
[1769388477177,0.001,2835.1,2834.1,1.3908766]
[1769388477381,0.04509015,2835.1,2833.9,9.02617287]
[1769388477586,0.001,2835.1,2833.9,9.02617287]
[1769388478388,0.001,2835.1,2834.1,8.1439967]
[1769388479473,0.739,2836.1,2834.2,8.377567]
[1769388479675,0.04407616,2836.0,2834.2,8.377567]
[1769388479875,0.739,2836.1,2834.4,8.377567]
[1769388480199,0.739,2836.1,2834.6,8.1439967]
[1769388480404,0.0440715,2836.3,2834.8,8.1439967]
[1769388480617,0.04407305,2836.2,2834.8,8.1439967]
[1769388480767,0.04406839,2836.5,2834.8,8.1439967]
[1769388480966,8.71700028,2836.4,2834.5,0.88196717]
[1769388481211,8.71700028,2836.2,2834.6,0.88195496]
[1769388481415,0.0440746,2836.1,2834.6,0.88195496]
[1769388481567,0.18379189,2836.9,2835.1,8.1439967]
[1769388481773,0.18379189,2836.9,2834.6,0.88195496]
[1769388481774,0.97820186,2836.8,2835.5,8.1439967]
[1769388481972,0.88096412,2837.8,2835.9,8.1439967]
[1769388482195,0.04404975,2837.7,2835.9,8.1439967]
[1769388482396,0.04404975,2837.7,2836.1,8.1439967]
[1769388482601,2.15353198,2837.7,2836.2,0.902552]
[1769388482801,8.84500028,2837.3,2835.5,0.2335703]
[1769388482968,8.84500028,2837.3,2835.4,8.1439967]
[1769388482969,8.7610578,2837.2,2835.4,8.1439967]
[1769388483179,8.71700028,2837.2,2835.2,1.69616986]
[1769388483411,8.71700028,2837.2,2835.2,1.69615144]
[1769388483600,8.63094143,2837.0,2835.3,0.24351514]
[1769388483771,8.63094143,2837.0,2835.2,0.81439967]
[1769388483772,8.63094143,2836.8,2834.8,0.88189242]
[1769388484094,8.63094143,2836.6,2834.7,9.29214739]
[1769388484293,0.04406839,2836.5,2834.8,0.88188778]
[1769388484499,9.51234038,2836.4,2834.3,9.24799558]
[1769388484704,9.51234038,2836.4,2834.6,0.88195325]
[1769388484705,8.63094143,2836.2,2834.6,0.88195325]
[1769388484907,8.67501603,2836.1,2834.4,1.01300531]
[1769388485218,0.04407616,2836.0,2834.5,0.88198524]
[1769388485519,0.04407616,2836.0,2834.4,9.42324419]
[1769388485685,1.74889993,2836.4,2834.7,0.88192242]
[1769388486017,0.57152108,2836.3,2834.7,9.29216194]